Cogmind - Beta 17.1 @@@ ROGUE MODE // 2026.09.22 @ 17:02:45 Player: Caluan Result: Destroyed by R1-CY2(R) with Subdweller Machine Gun Performance ------------- Evolutions (0) 0 Regions Visited (2) 400 Robots Destroyed (22) 110 Value Destroyed (383) 383 Prototype IDs (0) 0 Alien Tech Used (0) 0 Bonus (0) 0 TOTAL SCORE: 893 Bonus ------- None Cogmind --------- Core Integrity 0/250 Matter 253/300 Energy 55/100 System Corruption 2% Temperature Cool (0) Movement Treading (160) Location -10/Subcaves Parts ------- > --- POWER (1) -------- (None) > --- PROPULSION (2) --- Light Treads Light Treads > --- UTILITY (2) ------ Large Storage Unit > --- WEAPON (2) ------- Small Laser Light Cannon > --- INVENTORY (15) --- Improved Terrain Scanner Propulsion Shielding Datajack Mining Claw Shrapnel Trap Peak State ------------ > --- POWER ------------ Light Ion Engine > --- PROPULSION ------- Light Treads Light Treads > --- UTILITY ---------- Small Storage Unit Seismic Detector > --- WEAPON ----------- Medium Laser Small Laser > --- INVENTORY -------- Light Ion Engine Light Treads Light Treads Improved Terrain Scanner Propulsion Shielding Small Laser Light Cannon Mining Claw [Rating: 8] Favorites ----------- Power Light Ion Engine Engine Light Ion Engine Propulsion Light Treads Treads Light Treads Utility Large Storage Unit Device Seismic Detector Storage Large Storage Unit Weapon Small Laser Energy Gun Small Laser Ballistic Cannon Light Cannon Build | -11 -10 -10 ------- Run | Yrd Mat Sub Slots Evolved . | . . . Power . | . . . Propulsion . | . . . Utility . | . . . Weapon . | . . . Parts Attached 13 | 6 3 4 Power 2 | 1 1 . Engine 2 | 1 1 . Core . | . . . Reactor . | . . . Propulsion 4 | 2 . 2 Treads 4 | 2 . 2 Leg . | . . . Wheel . | . . . Hover . | . . . Flight . | . . . Utility 3 | 1 2 . Device 1 | . 1 . Storage 2 | 1 1 . Processor . | . . . Hackware . | . . . Protection . | . . . Artifact . | . . . Weapon 4 | 2 . 2 Energy Gun 3 | 2 . 1 Energy Cannon . | . . . Ballistic Gun . | . . . Ballistic Cannon 1 | . . 1 Launcher . | . . . Special Weapon . | . . . Impact Weapon . | . . . Slashing Weapon . | . . . Piercing Weapon . | . . . Special Melee Weapon . | . . . Unidentified Prototypes . | . . . Parts Lost 6 | . 2 4 Power 2 | . 1 1 Propulsion 2 | . . 2 Utility 1 | . 1 . Weapon 1 | . . 1 Highest Loss Streak 4 | . 1 4 To Critical Strikes . | . . . Average Backups 6 | 2 7 7 Power . | . . . Propulsion 1 | . 1 1 Utility 1 | . 1 2 Weapon 2 | . 2 2 Tool/Special . | . . . Unused Backups 4 | . . 4 Power . | . . . Propulsion . | . . . Utility 2 | . . 2 Weapon 1 | . . 1 Tool/Special 1 | . . 1 Average Slot Usage (%) 89 | . 91 83 Engine 13 | . 13 13 Treads 27 | . 26 27 Device 6 | . 8 . Storage 14 | . 14 14 Energy Gun 27 | . 27 27 Peak Build Rating 8 | 6 8 7 Average Rating 6 | 5 7 6 On Entrance 4 | . 6 7 Avg Prop Armor Cover (%) . | . . . Naked Turns . | . . . Heaviest Build 27 | 11 27 26 Greatest Support 40 | 40 40 40 Greatest Overweight (x) 2 | . 2 . Average Overweight (x) . | . . . Largest Inventory Capacity 15 | 8 15 15 Average Capacity 11 | 7 10 15 Most Carried 9 | 4 9 9 Average Carried 6 | 2 7 8 Final Capacity 15 | 8 15 15 Final Carried 8 | 4 8 5 Class Distribution -------------------- 100% | Mutant Dominant Class ---------------- Mutant | -10/Materials Mutant | -10/Subcaves Resources | -11 -10 -10 ----------- Run | Yrd Mat Sub Matter Collected 349 | 251 89 9 Remotely . | . . . Salvage Created 528 | 99 391 38 Parts 43 | 14 27 2 Haulers Intercepted . | . . . Recyclers Shooed . | . . . Parts Field Recycled . | . . . Retrieved Matter . | . . . Parts Self-Destructed . | . . . Prevented . | . . . Parts Restored . | . . . Kills | -11 -10 -10 ------- Run | Yrd Mat Sub Combat Hostiles Destroyed 16 | . 15 1 Guns 16 | . 15 1 Classes Destroyed 5 | 1 3 1 Worker 1 | . 1 . Tunneler 5 | 5 . . Swarmer 9 | . 9 . Grunt 6 | . 6 . Subdweller 1 | . . 1 Best Kill Streak 6 | 2 6 1 Combat Bots Only 5 | . 5 1 Max Kills in Single Turn 1 | 1 1 1 Gunslinging . | . . . Exploded . | . . . Melee . | . . . Uniques/NPCs Destroyed . | . . . Combat | -11 -10 -10 -------- Run | Yrd Mat Sub Hostile Shots Fired 81 | . 58 23 Missed 14 | . 13 1 Hits 67 | . 45 22 Projectile 67 | . 45 22 Critical Strikes 1 | . 1 . Damage Taken 892 | . 418 474 Core 268 | . 106 162 Absorbed by Shields . | . . . Core Remaining (%) 100 | 100 . . Volleys Fired 67 | 11 47 9 Largest 2 | 2 2 2 Hottest 90 | 90 90 90 Shots Fired 134 | 22 94 18 Gun 131 | 22 94 15 Cannon 3 | . . 3 Launcher . | . . . Special . | . . . Kinetic 3 | . . 3 Thermal 131 | 22 94 15 Explosive . | . . . Electromagnetic . | . . . Robot Hit Streak 9 | 9 6 9 Robot Miss Streak 4 | 2 4 1 Penetration Max . | . . . Secondary Targets 1 | . . 1 Max Gunslinging Chain 1 | . . 1 Shots Hit Robots 84 | 16 52 16 Core Hits 33 | 6 24 3 Critical Kills . | . . . Critical Parts Destroyed . | . . . Critical Strikes 4 | 1 2 1 Burn 4 | 1 2 1 Melee Attacks . | . . . Impact . | . . . Slashing . | . . . Piercing . | . . . Sneak Attacks . | . . . Combat Hostiles . | . . . Follow-up Attacks . | . . . Damage Inflicted 1059 | 193 666 200 Guns 987 | 188 651 148 Cannons 52 | . . 52 Explosions . | . . . Melee . | . . . Ramming 20 | 5 15 . Kinetic 52 | . . 52 Thermal 987 | 188 651 148 Explosive . | . . . Electromagnetic . | . . . Impact . | . . . Slashing . | . . . Piercing . | . . . Highest Corruption 2 | . 2 2 Average Corruption 2 | . 2 2 Corruption Purged . | . . . Corruption Blocked . | . . . Effects 8 | . 3 5 Message Errors 1 | . 1 . Matter Fused 1 | . . 1 Heat Flow Errors 2 | . . 2 Energy Discharges 2 | . 1 1 Parts Rejected 1 | . . 1 Alerts 1 | . 1 . Overload Shots . | . . . Overflow Damage . | . . . Projectiles . | . . . Explosions . | . . . Melee . | . . . Knockbacks 3 | 1 . 2 Impact 1 | 1 . . Kinetic 2 | . . 2 Secondary . | . . . Self-Inflicted Damage . | . . . Shots . | . . . Rammed 5 | 1 4 . Targets Rammed 5 | 1 4 . Kicked . | . . . Crushed . | . . . Highest Temperature 270 | 150 270 255 Average Temperature 74 | 62 74 124 Received Heat Transfer 96 | . 96 . Siege Activations . | . . . Martial Activations . | . . . Shielding Activations . | . . . Robots Disrupted . | . . . Combat Hostiles . | . . . Robots Corrupted . | . . . Combat Hostiles . | . . . Parts Fried . | . . . Impact Corruptions . | . . . Robots Melted . | . . . Combat Hostiles . | . . . Parts Melted 2 | . 2 . Heat Transferred 2876 | 570 1859 447 Parts Sabotaged . | . . . Parts Stolen . | . . . Parts Stripped . | . . . Power Chain Reactions . | . . . Alert | -11 -10 -10 ------- Run | Yrd Mat Sub Maximum Alert Level . | . . . Low Security (%) 100 | 100 100 . Level 1 . | . . . Level 2 . | . . . Level 3 . | . . . Level 4 . | . . . Level 5 . | . . . High Security . | . . . Max Security . | . . . Peak Influence 154 | 10 154 . Initial . | . . . Average 47 | 1 58 . Influence Increases 475 | 25 450 . Destroy 0b10 Robot/C 300 | . 300 . Destroy 0b10 Robot/NC 30 | 25 5 . Destroy Leader 70 | . 70 . Lose Combat Pursuer 75 | . 75 . Influence Decreases 475 | 25 332 118 Entered New Map 58 | . . 58 Time Decay 397 | 25 312 60 Lost Part 20 | . 20 . Squads Dispatched 3 | . 3 . Investigation . | . . . Extermination . | . . . Reinforcement 3 | . 3 . Assault . | . . . Garrison . | . . . Intercept . | . . . Searches Triggered . | . . . Construction Impeded . | . . . Haulers Reinforced . | . . . Active Scanning Responses . | . . . Cargo Convoy Interrupts . | . . . Stealth | -11 -10 -10 --------- Run | Yrd Mat Sub Distress Signals 1 | . 1 . Communications Jammed . | . . . Distress Signals . | . . . Times Spotted 39 | . 37 2 Peak Tracking Total 4 | . 4 2 Tactical Retreats 4 | . 4 . Traps | -11 -10 -10 ------- Run | Yrd Mat Sub Traps Triggered 3 | . 3 . Indirectly . | . . . Trap Hack Attempts . | . . . Triggered . | . . . Disarmed . | . . . Reprogrammed . | . . . Reused . | . . . Traps Extracted . | . . . Installed . | . . . Triggered . | . . . Most Traps Carried 1 | . . 1 Machines | -11 -10 -10 ---------- Run | Yrd Mat Sub Machines Disabled . | . . . Max in Single Turn . | . . . Machines Repaired . | . . . Machines Dismantled . | . . . Machines Sabotaged . | . . . Overloaded Fab Kills . | . . . Hacking | -11 -10 -10 --------- Run | Yrd Mat Sub Machines Accessed 2 | . . 2 Terminals . | . . . Fabricators . | . . . Repair Stations . | . . . Recycling Units . | . . . Scanalyzers . | . . . Garrison Access . | . . . Total Hacks 3 | . . 3 Successful 3 | . . 3 Failed . | . . . Catastrophic . | . . . Database Lockouts . | . . . Manual . | . . . Terminals . | . . . Fabricators . | . . . Repair Stations . | . . . Recycling Units . | . . . Scanalyzers . | . . . Garrison Access . | . . . Terminal Hacks 3 | . . 3 Record 1 | . . 1 Open Door 1 | . . 1 Release Object 1 | . . 1 Fabricator Hacks . | . . . Repair Station Hacks . | . . . Recycling Unit Hacks . | . . . Scanalyzer . | . . . Garrison Access Hacks . | . . . Unauthorized Hacks . | . . . Terminals . | . . . Fabricators . | . . . Repair Stations . | . . . Recycling Units . | . . . Scanalyzers . | . . . Garrison Access . | . . . Data Cores Recovered . | . . . Used . | . . . Hacking Detections . | . . . Full Trace Events . | . . . Feedback Events . | . . . Feedback Blocked . | . . . Robot Schematics Acquired . | . . . Robots Built . | . . . Authchips . | . . . Time . | . . . Total Robot Build Rating . | . . . Part Schematics Acquired . | . . . Parts Built . | . . . Authchips . | . . . Time . | . . . Total Part Build Rating . | . . . Part Studies Acquired . | . . . Parts Repaired . | . . . Time . | . . . Parts Recycled . | . . . Recycled Matter . | . . . Retrieved Matter . | . . . Retrieved Components . | . . . Parts Scanalyzed . | . . . Part Schematics Acquired . | . . . Parts Damaged . | . . . Bothacking | -11 -10 -10 ------------ Run | Yrd Mat Sub Used RIF Installer . | . . . Robots Hacked . | . . . Non-combat . | . . . Combat . | . . . Robot Hacks Applied . | . . . Relay Couplers Released . | . . . Fabnet Peak Effective % . | . . . Robots Rewired . | . . . Allies Hacked . | . . . Hacks Repelled . | . . . Allies | -11 -10 -10 -------- Run | Yrd Mat Sub Total Allies . | . . . Largest Group . | . . . Highest-Rated Group . | . . . Highest-Rated Ally . | . . . Total Orders . | . . . Ally Attacks . | . . . Total Damage . | . . . Kills . | . . . Allies Corrupted . | . . . Allies Melted . | . . . Intel | -11 -10 -10 ------- Run | Yrd Mat Sub Active Infowar (turns) 778 | . 778 . Seismic 778 | . 778 . Robot Analysis Total . | . . . Derelict Logs Recovered . | . . . Drone Launches . | . . . Drone Recoveries . | . . . Exploration | -11 -10 -10 ------------- Run | Yrd Mat Sub Turns Passed 2026 | 284 1219 523 Spaces Moved 995 | 155 594 246 Core 17 | 16 1 . Treads 978 | 139 593 246 Legs . | . . . Wheels . | . . . Hover . | . . . Flight . | . . . Fastest Speed 50 | 50 150 160 Average Speed 158 | 148 159 160 Slowest Speed 160 | 160 160 160 Overloaded Moves . | . . . Propulsion Burnouts . | . . . Robots Hopped . | . . . Potential Cave-ins . | . . . Cave-ins Triggered . | . . . Exploration Rate (%) 38 | 6 94 16 Regions Visited 2 Branch Regions 1 Pre-discovered Areas . | . . . Known Exits Taken . | . . . Unknown Exits Taken 2 | 1 1 . Scrap Searched . | . . . Spaces Dug . | . . . Terrain Destroyed . | . . . Melee . | . . . Projectile . | . . . AOE . | . . . Terrain Rammed . | . . . Walls Destroyed . | . . . Machines Disabled . | . . . Actions | -11 -10 -10 --------- Run | Yrd Mat Sub Total 1308 | 186 764 358 Wait 206 | 4 104 98 Move 993 | 154 593 246 Hop . | . . . Pick Up 17 | 10 6 1 Fast Attach 6 | . 6 . Attach 12 | 6 2 4 Detach . | . . . Swap 1 | . 1 . Drop 1 | . 1 . Fire 67 | 11 47 9 Melee . | . . . Ram . | . . . Kick . | . . . Crush 5 | 1 4 . Escape Stasis . | . . . Rewire . | . . . Trap . | . . . Miscellaneous . | . . . Route ------- -11/Scrapyard -10/Materials (discovered 5 exits: [*Mat x3] / [*Min] / *Sub) -10/Subcaves History --------- Turn | Location | Event 3 | -11/Scrapyard | Discovered new exit (range 15) 285 | -11/Scrapyard | Entered Materials 305 | -10/Materials | Build established: Mutant 417 | -10/Materials | Discovered new exit (range 7) 685 | -10/Materials | Discovered new exit (range 9) 797 | -10/Materials | Discovered new exit (range 8) 1207 | -10/Materials | Discovered new exit (range 9) 1491 | -10/Materials | Discovered new exit (range 6) 1504 | -10/Materials | Entered Subcaves 1979 | -10/Subcaves | Core integrity fell below 50% 2011 | -10/Subcaves | Core integrity fell below 20% 2027 | -10/Subcaves | Destroyed by R1-CY2(R) with Subdweller Machine Gun Last Messages --------------- could cause more extreme side effects. Take all precautions to prevent this from happening. >>Release Inventory Accessing inventory controls... Collection purity confirmed 100%... Ejecting SUBCON Basin... Delivery behind schedule, handle with care! 01794_ System corrupted: Energy discharge (-46). 01891_ System corrupted: Heat flow error (+220). 01913_ System corrupted: Heat flow error (+295). 01995_ VO-HUM(R) suffers critical hit (Burn). 02004_ Lgt. Treads destroyed. 02008_ Lgt. Ion Engine destroyed. 02010_ System corrupted: Med. Laser rejected. 02013_ VO-HUM(R) destroyed. 02013_ Switching to secondary target: R1-CY2(R). 02015_ Subatomizers dissect the Med. Laser. 02016_ Sml. Laser destroyed. 02017_ R1-CY2(R) knocked back. Map ----- +----------------------------------------------------+ | ?????????????????????????????????????????????????? | | ?????????????????????????????????????????????????? | | ?????????????????????????????????????????????????? | | ?????????????????????????????????????????????????? | | ??????????????????????###########????????????????? | | ??####????#######?##### ## #????????????????? | | ??# ###??# ### #????????????????? | | ### #### #????????????????? | | ## % ### ##????????????????? | | #?#####?????????????????? | | #### % #???????????????????????? | | #####??## ##???????????????????????? | | ####???????# #????????????????????????? | | #####???????## ### ##?###????????????????????? | | #### ##???????###?####?# ##?????#?????????????? | | ### #??????###?????## #???# ##????????????? | | #?????## ##??### #?? ?????????????? | | #?????# #### ## ???????????? | | ##????## ## ????????????? | | ####### ???????????? | | # # ???????????? | | ## % ??????????? | | #### ???????????? | | ???# ## % R ! #### #??????????????? | | #??## ## *%####???????????????????? | | ### ## @[ #???????????????????? | | #???????????????????? | | ### #??????????????????? | | #?## #?????????????????? | | ###### ## #?## #????????????????? | | ?????# ## ##??? #????????????????? | | ?????# ##### #???? ##????????????????? | | ????### #???# #???? ##?????????????????? | | ### # #???# ##???? #??????????????????? | | #???####????? ##??????????????????? | | # #???????????? ##???????????????????? | | #### ## ##????????????##????????????????????? | | ???##### #???????????????????????????????????? | | ?????## ##???????????????????????????????????? | | ##?### ##???????????????????????????????????? | | ### #???????????????????????????????????? | | ## ##???????????????????????????????????? | | ## #????????????????????????????????????? | | # #? #????????????????????????????????????? | | #### ##?# #????????????????????????????????????? | | #### ##??# #????????????????????????????????????? | | ####??? ????????????????????????????????????? | | #??###? #???????????????????????????????????? | | #?# ### #### ???????????????????????????????? | | ## ??????????????????????????????? | +----------------------------------------------------+ Best States ------------- Heat Dissipation 25 Energy Generation 10 Energy Capacity 125 Matter Stores 300 Matter Capacity 300 Sight Range 16 Terrain Scan Density 10 Evasion (%) 50 Recoil Reduction 2 Item Schematics ----------------- None Robot Schematics ------------------ None Fabricated ------------ Nothing Repaired ---------- Nothing Studied --------- None Alien Tech Used ----------------- None Achievements -------------- None Challenges ------------ None Game ------ Seed AssembledHeatGravjet Manual? 0 Play Time 00:08:12 Cumulative 320.5 hours Start 2026.09.22 @ 16:56:12 End 2026.09.22 @ 17:02:45 Sessions 1 Manual Loads 0 Difficulty Rogue Special Mode None Game No. 357 Rogue 357 Adventurer 0 Explorer 0 Win Type - Total 3 Types 3/0/0/0/0/0/0/0/0/0 Lore% 54 Gallery% 60 Achievement% 46 Wizard Run 0 Options --------- Layout 1 ASCII 0 Keyboard 0 Movement Numpad Keybinds 0 Fullscreen 2 Font 24/Smallcaps Map View 50x35 Zoom Use 0% Tactical HUD 1 Map Filters NONE Filters NONE Steam 1 RUN: d70edd34-abf9-443e-b427-2fbe98d6583d